bitfinex-derivatives/quotes_BNBF0:USTF0_20251203
["timestamp","ask_amount","ask_price","bid_price","bid_amount"]
[1764778269497,0.6337371,894.54,893.61,0.741]
[1764778269698,0.6337371,894.53,893.61,0.741]
[1764778269900,0.83364121,894.66,893.61,0.741]
[1764778269901,0.6337371,894.52,893.61,0.741]
[1764778270195,0.6337371,894.51,893.61,0.741]
[1764778270398,0.6337371,894.5,893.61,0.741]
[1764778270595,0.6337371,894.49,893.61,0.741]
[1764778270797,0.6337371,894.48,893.61,0.741]
[1764778270997,0.6337371,894.47,893.61,0.741]
[1764778271297,0.6337371,894.46,893.61,0.741]
[1764778271495,0.6337371,894.45,893.61,0.741]
[1764778271698,0.6337371,894.44,893.61,0.741]
[1764778271898,0.6337371,894.43,893.61,0.741]
[1764778272195,0.6337371,894.42,893.61,0.741]
[1764778272397,0.6337371,894.41,893.61,0.741]
[1764778272597,0.6337371,894.4,893.61,0.741]
[1764778272795,0.6337371,894.39,893.61,0.741]
[1764778273095,0.6337371,894.38,893.61,0.741]
[1764778273298,0.83364121,894.59,893.61,0.741]
[1764778273299,0.6337371,894.37,893.61,0.741]
[1764778273497,0.6337371,894.36,893.61,0.741]
[1764778273694,0.6337371,894.35,893.61,0.741]
[1764778273899,0.6337371,894.34,893.61,0.741]
[1764778274097,0.6337371,894.33,893.61,0.741]
[1764778274296,0.6337371,894.32,893.61,0.741]
[1764778274501,0.6337371,894.31,893.61,0.741]
[1764778274797,0.6337371,894.3,893.61,0.741]
[1764778275100,0.6337371,894.29,893.61,0.741]
[1764778275300,0.83364121,894.58,893.61,0.741]
[1764778275498,0.63386831,894.57,893.61,0.741]
[1764778275797,0.63386831,894.56,893.61,0.741]
[1764778275996,0.63386831,894.55,893.61,0.741]
[1764778276199,0.63386831,894.54,893.61,0.741]
[1764778276397,0.63386831,894.53,893.61,0.741]
[1764778276602,0.63386831,894.52,893.61,0.741]
[1764778276801,0.63386831,894.51,893.61,0.741]
[1764778277000,0.63386831,894.5,893.61,0.741]
[1764778277205,0.63386831,894.49,893.61,0.741]
[1764778277404,0.63386831,894.48,893.61,0.741]
[1764778277605,0.63386831,894.47,893.61,0.741]
[1764778277801,0.63386831,894.46,893.61,0.741]
[1764778278104,0.63386831,894.45,893.61,0.741]
[1764778278301,0.63386831,894.44,893.61,0.741]
[1764778278503,0.63386831,894.43,893.61,0.741]
[1764778278699,0.83364121,894.69,893.61,0.741]
[1764778279005,0.6340706,894.68,893.61,0.741]
[1764778279204,0.6340706,894.67,893.61,0.741]
[1764778279402,0.6340706,894.66,893.61,0.741]
[1764778279606,0.6340706,894.65,893.61,0.741]
[1764778279806,0.6340706,894.64,893.61,0.741]
[1764778280106,0.6340706,894.63,893.61,0.741]
[1764778280307,0.6340706,894.62,893.61,0.741]
[1764778280608,0.6340706,894.61,893.61,0.741]
[1764778280808,0.6340706,894.6,893.61,0.741]
[1764778281103,0.6340706,894.59,893.62,0.734]
[1764778281303,0.6340706,894.58,893.62,0.734]
[1764778281508,0.6340706,894.57,893.62,0.734]
[1764778281709,0.6340706,894.56,893.62,0.734]
[1764778281903,0.6340706,894.55,893.62,0.734]
[1764778282104,0.6340706,894.54,893.62,0.734]
[1764778282305,0.6340706,894.53,893.62,0.734]
[1764778282505,0.6340706,894.52,893.62,0.734]
[1764778282709,0.6340706,894.51,893.62,0.734]
[1764778282908,0.83364121,894.8,893.62,0.734]
[1764778283106,0.63564391,894.79,893.62,0.734]
[1764778283404,0.63564391,894.78,893.62,0.734]
[1764778283609,0.83364121,894.78,893.62,0.734]
[1764778283909,0.83364121,894.73,893.62,0.734]
[1764778284110,0.63564391,894.72,893.62,0.734]
[1764778285509,1.46928512,894.72,893.62,0.734]
[1764778285805,0.83364121,894.67,893.62,0.734]
[1764778286006,0.83364121,894.6,893.62,0.734]
[1764778286210,0.01263859,895.56,893.62,0.734]
[1764778286211,1.46928512,894.59,893.62,0.734]
[1764778286412,1.46928512,894.58,893.62,0.734]
[1764778286608,0.83364121,894.56,893.62,0.734]
[1764778286808,0.63564391,894.55,893.62,0.734]
[1764778287212,0.83364121,894.54,893.62,0.734]
[1764778287412,0.83364121,894.52,893.62,0.734]
[1764778287611,0.63564391,894.51,893.62,0.734]
[1764778288514,0.63564391,894.5,893.62,0.734]
[1764778288714,0.63564391,894.49,893.62,0.734]
[1764778288910,0.63564391,894.48,893.62,0.734]
[1764778289214,0.63564391,894.47,893.62,0.734]
[1764778289509,0.63564391,894.46,893.62,0.734]
[1764778289711,0.63564391,894.45,893.62,0.734]
[1764778289910,0.63564391,894.44,893.62,0.734]
[1764778290109,0.63564391,894.43,893.62,0.734]
[1764778290314,0.63564391,894.42,893.62,0.734]
[1764778290515,0.63564391,894.41,893.62,0.734]
[1764778290712,0.63564391,894.4,893.62,0.734]
[1764778290915,0.63564391,894.39,893.62,0.734]
[1764778291211,0.63564391,894.38,893.62,0.734]
[1764778291511,0.63564391,894.37,893.62,0.734]
[1764778291715,0.63564391,894.36,893.62,0.734]
[1764778292014,0.63564391,894.35,893.62,0.734]
[1764778292215,0.63564391,894.34,893.62,0.734]
[1764778292409,0.63564391,894.33,893.62,0.734]
[1764778292612,0.63564391,894.32,893.62,0.734]
[1764778292811,0.63564391,894.31,893.62,0.734]
[1764778293111,0.63564391,894.3,893.62,0.734]
[1764778293310,0.00838135,895.21,893.62,0.734]
[1764778293311,0.63564391,894.29,893.62,0.734]
[1764778293512,0.63564391,894.28,893.62,0.734]
[1764778293716,0.63564391,894.27,893.62,0.734]
[1764778293916,0.83364121,894.55,893.62,0.734]
[1764778294212,0.63752496,894.54,893.62,0.734]
[1764778294511,1.47116617,894.54,893.62,0.734]
[1764778294716,0.63752496,894.53,893.62,0.734]
[1764778295317,0.63752496,894.52,893.62,0.734]
[1764778295513,0.63752496,894.51,893.62,0.734]
[1764778295813,0.63752496,894.5,893.62,0.734]
[1764778296013,0.63752496,894.49,893.62,0.734]
[1764778296215,0.63752496,894.48,893.62,0.734]
[1764778296414,0.63752496,894.47,893.62,0.734]
[1764778296615,0.63752496,894.46,893.62,0.734]
[1764778296813,0.83364121,894.59,893.62,0.734]
[1764778296814,0.63752496,894.45,893.62,0.734]
[1764778297017,0.63752496,894.44,893.62,0.734]
[1764778297217,0.63752496,894.43,893.62,0.734]
[1764778297414,0.63752496,894.42,893.62,0.734]
[1764778297713,0.63752496,894.41,893.62,0.734]
[1764778297912,0.63752496,894.4,893.62,0.734]
[1764778298115,0.63752496,894.39,893.62,0.734]
[1764778298319,0.63752496,894.38,893.62,0.734]
[1764778298519,0.63752496,894.37,893.62,0.734]
[1764778298720,0.63752496,894.36,893.62,0.734]
[1764778298920,0.63752496,894.35,893.62,0.734]
[1764778299219,0.63752496,894.34,893.62,0.734]
[1764778299515,0.63752496,894.33,893.62,0.734]
[1764778299716,0.63752496,894.32,893.62,0.734]
[1764778299919,0.63752496,894.31,893.62,0.734]
[1764778300119,0.63752496,894.3,893.62,0.734]
[1764778300318,0.63752496,894.29,893.62,0.734]
[1764778300517,0.63752496,894.28,893.62,0.734]
[1764778300716,0.63752496,894.27,893.62,0.734]
[1764778300920,0.63752496,894.26,893.62,0.734]
[1764778301121,0.63752496,894.25,893.62,0.734]
[1764778301318,0.63752496,894.24,893.62,0.734]
[1764778301618,0.63752496,894.23,893.62,0.734]
[1764778301821,0.63752496,894.22,893.62,0.734]
[1764778302017,0.63752496,894.21,893.62,0.734]
[1764778302218,0.63752496,894.2,893.62,0.734]
[1764778302418,0.63752496,894.19,893.62,0.734]
[1764778302722,0.63752496,894.18,893.62,0.734]
[1764778302918,0.63752496,894.17,893.62,0.734]
[1764778303222,0.83364121,894.45,893.62,0.734]
[1764778303519,0.83364121,894.42,893.62,0.734]
[1764778303719,0.63961559,894.41,893.62,0.734]
[1764778304517,1.4732568,894.41,893.62,0.734]
[1764778304721,0.63961559,894.4,893.62,0.734]
[1764778305823,0.83364121,894.39,893.62,0.734]
[1764778306022,0.83364121,894.36,893.62,0.734]
[1764778306220,1.4732568,894.35,893.62,0.734]
[1764778306424,0.63961559,894.34,893.62,0.734]
[1764778307320,1.4732568,894.34,893.62,0.734]
[1764778307520,0.83364121,894.31,893.62,0.734]
[1764778307820,0.83364121,894.29,893.62,0.734]
[1764778308018,0.63961559,894.28,893.62,0.734]
[1764778308324,0.63961559,894.27,893.62,0.734]
[1764778308519,0.63961559,894.26,893.62,0.734]
[1764778308724,0.00888751,895.18,893.62,0.734]
[1764778308725,0.83364121,894.16,893.62,0.734]
[1764778308921,0.63961559,894.15,893.62,0.734]
[1764778309425,0.63961559,894.14,893.62,0.734]
[1764778309721,0.63961559,894.13,893.62,0.734]
[1764778309926,0.63961559,894.12,893.62,0.734]
[1764778310123,0.63961559,894.11,893.62,0.734]
[1764778310323,0.63961559,894.1,893.62,0.734]
[1764778310520,0.63961559,894.09,893.62,0.734]
[1764778310826,0.63961559,894.08,893.35,0.19462761]
[1764778311126,0.83364121,894.06,893.35,0.19462761]
[1764778311323,0.63961559,894.05,893.35,0.19462761]
[1764778311627,0.63961559,894.04,893.35,0.19462761]
[1764778311927,0.63961559,894.03,893.35,0.19462761]
[1764778312124,0.63961559,894.02,893.35,0.19462761]
[1764778312323,0.83364121,894.07,893.35,0.19462761]
[1764778312324,0.63961559,894.01,893.35,0.19462761]
[1764778312624,0.63961559,894.0,893.35,0.19462761]
[1764778312823,0.63961559,893.99,893.35,0.19462761]
[1764778313023,0.63961559,893.98,893.35,0.19462761]
[1764778313224,0.63961559,893.97,893.35,0.19462761]
[1764778313424,0.63961559,893.96,893.35,0.19462761]
[1764778313623,0.63961559,893.95,893.35,0.19462761]
[1764778313824,0.63961559,893.94,893.35,0.19462761]
[1764778314022,0.63961559,893.93,893.35,0.19462761]
[1764778314227,0.63961559,893.92,893.35,0.19462761]
[1764778314524,0.63961559,893.91,893.17,0.943]
[1764778314827,0.63961559,893.9,893.17,0.943]
[1764778315025,0.63961559,893.89,893.17,0.943]
[1764778315225,0.63961559,893.88,893.17,0.943]
[1764778315424,0.63961559,893.87,893.17,0.943]
[1764778315625,0.63961559,893.86,893.17,0.943]
[1764778315823,0.63961559,893.85,893.17,0.943]
[1764778316028,0.83364121,893.96,893.17,0.943]
[1764778316029,0.63961559,893.84,893.17,0.943]
[1764778316226,0.63961559,893.83,893.17,0.943]
[1764778316430,0.63961559,893.82,893.17,0.943]
[1764778316629,0.63961559,893.81,893.17,0.943]
[1764778316926,0.63961559,893.8,893.17,0.943]
[1764778317127,0.63961559,893.79,893.17,0.943]
[1764778317431,0.63961559,893.78,893.17,0.943]
[1764778317631,0.63961559,893.77,893.17,0.943]
[1764778317825,0.63961559,893.76,893.17,0.943]
[1764778318031,0.63961559,893.75,893.17,0.943]
[1764778318331,0.63961559,893.74,893.17,0.943]
[1764778318627,0.63961559,893.73,893.17,0.943]
[1764778318826,0.63961559,893.72,893.17,0.943]
[1764778319126,0.63961559,893.71,893.17,0.943]
[1764778319428,0.63961559,893.7,893.17,0.943]
[1764778319626,0.63961559,893.69,893.17,0.943]
[1764778319830,0.63961559,893.68,893.17,0.943]
[1764778320126,0.63961559,893.67,893.17,0.943]
[1764778320331,0.83364121,893.97,893.17,0.943]
[1764778320531,0.63764448,893.96,893.17,0.943]
[1764778320731,0.63764448,893.95,893.17,0.943]
[1764778321027,0.63764448,893.94,893.17,0.943]
[1764778321234,0.63764448,893.93,893.17,0.943]
[1764778321527,0.63764448,893.92,893.17,0.943]
[1764778321731,0.63764448,893.91,893.17,0.943]
[1764778321931,0.63764448,893.9,893.17,0.943]
[1764778322231,0.63764448,893.89,893.17,0.943]
[1764778322532,0.63764448,893.88,893.17,0.943]
[1764778322731,0.83364121,894.08,893.17,0.943]
[1764778322732,0.63764448,893.87,893.17,0.943]
[1764778322927,0.63764448,893.86,893.17,0.943]
[1764778323128,0.63764448,893.85,893.17,0.943]
[1764778323329,0.63764448,893.84,893.17,0.943]
[1764778323629,0.63764448,893.83,893.17,0.943]
[1764778323933,0.63764448,893.82,893.17,0.943]
[1764778324127,0.63764448,893.81,893.17,0.943]
[1764778324330,0.63764448,893.8,893.17,0.943]
[1764778324530,0.63764448,893.79,893.17,0.943]
[1764778324734,0.63764448,893.78,893.17,0.943]
[1764778324933,0.63764448,893.77,893.17,0.943]
[1764778325130,0.63764448,893.76,893.17,0.943]
[1764778325436,0.63764448,893.75,893.17,0.943]
[1764778325633,0.63764448,893.74,893.17,0.943]
[1764778325834,0.63764448,893.73,893.17,0.943]
[1764778326029,0.63764448,893.72,893.17,0.943]
[1764778326235,0.63764448,893.71,893.17,0.943]
[1764778326435,0.63764448,893.7,893.17,0.943]
[1764778326633,0.63764448,893.69,893.17,0.943]
[1764778326837,0.63764448,893.68,893.17,0.943]
[1764778327036,0.83364121,893.93,893.17,0.943]
[1764778327037,0.63764448,893.67,893.17,0.943]
[1764778327337,0.63764448,893.66,893.17,0.943]
[1764778327633,0.63764448,893.65,893.17,0.943]
[1764778327834,0.83364121,893.94,893.17,0.943]
[1764778328037,0.6360928,893.93,893.17,0.943]
[1764778328233,0.6360928,893.92,893.17,0.943]
[1764778328435,0.6360928,893.91,893.17,0.943]
[1764778328734,0.6360928,893.9,893.17,0.943]
[1764778328933,0.83364121,893.77,893.17,0.943]
[1764778329139,0.6360928,893.76,893.17,0.943]
[1764778329338,0.6360928,893.75,893.17,0.943]
[1764778329536,0.6360928,893.74,893.17,0.943]
[1764778329739,0.6360928,893.73,893.17,0.943]
[1764778330034,0.6360928,893.72,893.17,0.943]
[1764778330237,0.6360928,893.71,893.17,0.943]
[1764778330437,0.83364121,893.84,893.17,0.943]
[1764778330438,0.6360928,893.7,893.17,0.943]
[1764778330634,0.6360928,893.69,893.17,0.943]
[1764778330834,0.83364121,893.98,893.17,0.943]
[1764778331038,0.63553924,893.97,893.17,0.943]
[1764778331240,0.63553924,893.96,893.17,0.943]
[1764778331539,0.63553924,893.95,893.17,0.943]
[1764778331740,0.63553924,893.94,893.17,0.943]
[1764778331940,0.63553924,893.93,893.17,0.943]
[1764778332137,0.63553924,893.92,893.17,0.943]
[1764778332342,0.63553924,893.91,893.17,0.943]
[1764778332544,0.63553924,893.9,893.17,0.943]
[1764778332744,0.63553924,893.89,893.17,0.943]
[1764778332943,0.63553924,893.88,893.17,0.943]
[1764778333143,0.63553924,893.87,893.17,0.943]
[1764778333342,0.63553924,893.86,893.17,0.943]
[1764778333543,0.63553924,893.85,893.17,0.943]
[1764778333841,0.63553924,893.84,893.17,0.943]
[1764778334042,0.63553924,893.83,893.17,0.943]
[1764778334239,0.63553924,893.82,893.17,0.943]
[1764778334440,0.63553924,893.81,893.17,0.943]
[1764778334744,0.63553924,893.8,893.17,0.943]
[1764778335039,0.63553924,893.79,893.17,0.943]
[1764778335244,0.63553924,893.78,893.17,0.943]
[1764778335542,0.63553924,893.77,893.17,0.943]
[1764778335741,0.63553924,893.76,893.17,0.943]
[1764778335941,0.63553924,893.75,893.17,0.943]
[1764778336242,0.63553924,893.74,893.17,0.943]
[1764778336436,0.63553924,893.73,893.17,0.943]
[1764778336639,0.63553924,893.72,893.17,0.943]
[1764778336839,0.83364121,894.01,893.17,0.943]
[1764778337039,0.63445783,894.0,893.17,0.943]
[1764778337237,0.01107121,894.75,893.17,0.943]
[1764778337238,0.83364121,893.95,893.17,0.943]
[1764778337438,0.63445783,893.94,893.17,0.943]
[1764778337638,0.63445783,893.93,893.17,0.943]
[1764778337843,0.63445783,893.92,893.17,0.943]
[1764778338042,0.63445783,893.91,893.17,0.943]
[1764778338344,0.63445783,893.9,893.17,0.943]
[1764778338541,0.63445783,893.89,893.17,0.943]
[1764778338739,0.83364121,893.89,893.17,0.943]
[1764778338939,0.63445783,893.88,893.17,0.943]
[1764778339143,0.63445783,893.87,893.17,0.943]
[1764778339346,0.63445783,893.86,893.17,0.943]
[1764778339547,0.83364121,893.81,893.17,0.943]
[1764778339747,0.63445783,893.8,893.17,0.943]
[1764778340046,1.46809904,893.8,893.17,0.943]
[1764778340246,0.63445783,893.79,893.17,0.943]
[1764778340644,0.63445783,893.78,893.17,0.943]
[1764778340843,0.63445783,893.77,893.17,0.943]
[1764778341040,0.63445783,893.76,893.17,0.943]
[1764778341340,0.63445783,893.75,893.17,0.943]
[1764778341544,0.63445783,893.74,893.17,0.943]
[1764778341742,0.63445783,893.73,893.17,0.943]
[1764778341945,0.63445783,893.72,893.17,0.943]
[1764778342147,0.63445783,893.71,893.17,0.943]
[1764778342343,0.63445783,893.7,893.17,0.943]
[1764778342543,0.63445783,893.69,893.17,0.943]
[1764778342748,0.63445783,893.68,893.17,0.943]
[1764778342945,0.63445783,893.67,893.17,0.943]
[1764778343144,0.63445783,893.66,893.17,0.943]
[1764778343348,0.63445783,893.65,893.17,0.943]
[1764778343549,0.63445783,893.64,893.17,0.943]
[1764778343844,0.63445783,893.63,893.17,0.943]
[1764778344045,0.63445783,893.62,893.17,0.943]
[1764778344249,0.63445783,893.61,893.17,0.943]
[1764778344444,0.63445783,893.6,893.17,0.943]
[1764778344647,0.63445783,893.59,893.17,0.943]
[1764778344844,0.83364121,893.92,893.17,0.943]
[1764778345045,1.66728242,894.24,893.17,0.943]
[1764778345046,0.63568428,893.91,893.17,0.943]
[1764778345249,0.63568428,893.9,893.17,0.943]
[1764778345445,0.63568428,893.89,893.17,0.943]
[1764778345749,0.63568428,893.88,893.17,0.943]
[1764778345950,0.63568428,893.87,893.17,0.943]
[1764778346145,0.63568428,893.86,893.17,0.943]
[1764778346345,0.63568428,893.85,893.17,0.943]
[1764778346545,0.63568428,893.84,893.17,0.943]
[1764778346749,0.63568428,893.83,893.17,0.943]
[1764778347044,0.83364121,894.08,893.17,0.943]
[1764778347045,0.63568428,893.82,893.17,0.943]
[1764778347245,0.63568428,893.81,893.17,0.943]
[1764778347550,0.63568428,893.8,893.17,0.943]
[1764778347745,0.63568428,893.79,893.17,0.943]
[1764778348048,0.83364121,894.08,893.17,0.943]
[1764778348249,0.63581699,894.07,893.17,0.943]
[1764778348446,0.63581699,894.06,893.17,0.943]
[1764778348746,0.63581699,894.05,893.17,0.943]
[1764778348950,0.63581699,894.04,893.17,0.943]
[1764778349250,0.63581699,894.03,893.17,0.943]
[1764778349448,0.63581699,894.02,893.17,0.943]
[1764778349646,0.63581699,894.01,893.17,0.943]
[1764778349849,0.63581699,894.0,893.17,0.943]
[1764778350049,0.63581699,893.99,893.17,0.943]
[1764778350247,0.63581699,893.98,893.17,0.943]
[1764778350549,0.63581699,893.97,893.17,0.943]
[1764778350748,0.63581699,893.96,893.17,0.943]
[1764778350952,0.63581699,893.95,893.17,0.943]
[1764778351152,0.63581699,893.94,893.17,0.943]
[1764778351349,0.63581699,893.93,893.17,0.943]
[1764778351547,0.63581699,893.92,893.17,0.943]
[1764778351848,0.63581699,893.91,893.17,0.943]
[1764778352049,0.63581699,893.9,893.17,0.943]
[1764778352253,0.63581699,893.89,893.17,0.943]
[1764778352552,0.63581699,893.88,893.17,0.943]
[1764778352848,0.83364121,894.07,893.17,0.943]
[1764778352849,0.63581699,893.87,893.17,0.943]
[1764778353148,0.63581699,893.86,893.17,0.943]
[1764778353348,0.63581699,893.85,893.17,0.943]
[1764778353552,0.63581699,893.84,893.17,0.943]
[1764778353749,0.63581699,893.83,893.17,0.943]
[1764778353950,0.63581699,893.82,893.17,0.943]
[1764778354154,0.63581699,893.81,893.17,0.943]
[1764778354350,0.63581699,893.8,893.17,0.943]
[1764778354549,0.63581699,893.79,893.17,0.943]
[1764778354751,0.63581699,893.78,893.17,0.943]
[1764778354951,0.63581699,893.77,893.17,0.943]
[1764778355248,0.63581699,893.76,893.17,0.943]
[1764778355453,0.63581699,893.75,893.17,0.943]
[1764778355652,0.63581699,893.74,893.17,0.943]
[1764778355953,0.63581699,893.73,893.17,0.943]
[1764778356150,0.83364121,894.01,893.17,0.943]
[1764778356454,0.83364121,893.95,893.17,0.943]
[1764778356755,0.63670996,893.94,893.17,0.943]
[1764778357357,1.47035117,893.94,893.17,0.943]
[1764778357650,0.63670996,893.93,893.17,0.943]
[1764778359257,1.47035117,893.93,893.17,0.943]
[1764778359451,0.63670996,893.92,893.17,0.943]
[1764778361356,0.83364121,893.91,893.17,0.943]
[1764778361557,0.63670996,893.9,893.17,0.943]
[1764778362258,1.47035117,893.9,893.17,0.943]
[1764778362455,0.63670996,893.89,893.17,0.943]
[1764778363255,0.63670996,893.88,893.17,0.943]
[1764778363455,0.63670996,893.87,893.17,0.943]
[1764778363764,0.63670996,893.86,893.17,0.943]
[1764778363960,0.63670996,893.85,892.88,0.942]
[1764778364162,0.63670996,893.84,892.88,0.942]
[1764778364362,0.63670996,893.83,892.88,0.942]
[1764778364567,0.63670996,893.82,892.88,0.942]
[1764778364862,0.63670996,893.81,892.88,0.942]
[1764778365068,0.63670996,893.8,892.88,0.942]
[1764778365265,0.63670996,893.79,892.88,0.942]
[1764778365468,0.63670996,893.78,892.88,0.942]
[1764778365665,0.63670996,893.77,892.88,0.942]
[1764778365969,0.63670996,893.76,892.88,0.942]
[1764778366268,0.63670996,893.75,892.88,0.942]
[1764778366568,0.83364121,894.0,892.88,0.942]
[1764778366569,0.63670996,893.74,892.89,0.844]
[1764778366769,0.63670996,893.73,892.89,0.844]
[1764778366970,0.83364121,893.98,892.89,0.844]
[1764778366971,0.63670996,893.72,892.89,0.844]
[1764778367163,0.63670996,893.71,892.89,0.844]
[1764778367468,0.63670996,893.7,892.89,0.844]
[1764778367665,0.63670996,893.69,892.89,0.844]
[1764778367865,0.63670996,893.68,892.89,0.844]
[1764778368067,0.63670996,893.67,892.89,0.844]
[1764778368265,0.63670996,893.66,892.89,0.844]
[1764778368469,0.63670996,893.65,892.89,0.844]
[1764778368669,0.83364121,893.94,892.89,0.844]
[1764778368870,0.63998973,893.93,892.89,0.844]
[1764778369168,0.83364121,893.91,892.89,0.844]
[1764778369370,0.83364121,893.82,892.89,0.844]
[1764778369570,0.63998973,893.81,892.89,0.844]
[1764778370276,0.83364121,893.8,892.89,0.844]
[1764778370475,0.63998973,893.79,892.89,0.844]
[1764778370676,0.63998973,893.78,892.89,0.844]
[1764778370874,0.83364121,893.72,892.89,0.844]
[1764778371073,0.63998973,893.71,892.89,0.844]
[1764778371278,1.47363094,893.71,892.89,0.844]
[1764778371478,0.63998973,893.7,892.89,0.844]
[1764778371778,0.63998973,893.69,892.89,0.844]
[1764778371977,0.63998973,893.68,892.9,0.8]
[1764778372278,0.63998973,893.67,892.9,0.8]
[1764778372477,0.63998973,893.66,892.9,0.8]
[1764778372717,0.63998973,893.65,892.9,0.8]
[1764778372879,0.63998973,893.64,892.9,0.8]
[1764778373074,0.63998973,893.63,892.9,0.8]
[1764778373273,0.63998973,893.62,892.9,0.8]
[1764778373481,0.63998973,893.61,892.9,0.8]
[1764778373674,0.63998973,893.6,892.9,0.8]
[1764778373979,0.63998973,893.59,892.9,0.8]
[1764778374176,0.63998973,893.58,892.9,0.8]
[1764778374475,0.63998973,893.57,892.9,0.8]
[1764778374679,0.63998973,893.56,892.9,0.8]
[1764778374877,0.63998973,893.55,892.9,0.8]
[1764778375076,0.83364121,893.67,892.9,0.8]
[1764778375077,0.63998973,893.54,892.9,0.8]
[1764778375277,0.63998973,893.53,892.9,0.8]
[1764778375475,0.63998973,893.52,892.9,0.8]
[1764778375678,0.63998973,893.51,892.9,0.8]
[1764778375878,0.63998973,893.5,892.9,0.8]
[1764778376077,0.63998973,893.49,892.9,0.8]
[1764778376377,0.63998973,893.48,892.9,0.8]
[1764778376677,0.63998973,893.47,892.9,0.8]
[1764778376881,0.63998973,893.46,892.9,0.8]
[1764778377081,0.63998973,893.45,892.9,0.8]
[1764778377378,0.63998973,893.44,892.9,0.8]
[1764778377577,0.83364121,893.65,892.9,0.8]
[1764778377578,0.63998973,893.43,892.9,0.8]
[1764778377880,0.63998973,893.42,892.9,0.8]
[1764778378077,0.63998973,893.41,892.9,0.8]
[1764778378276,0.63998973,893.4,892.9,0.8]
[1764778378480,0.63998973,893.39,892.9,0.8]
[1764778378681,0.63998973,893.38,892.9,0.8]
[1764778378877,0.63998973,893.37,892.9,0.8]
[1764778379079,0.63998973,893.36,892.9,0.8]
[1764778379283,0.83364121,893.65,892.9,0.8]
[1764778379479,0.6396235,893.64,892.9,0.8]
[1764778379684,0.6396235,893.63,892.9,0.8]
[1764778379881,0.6396235,893.62,892.9,0.8]
[1764778380080,0.83364121,893.58,892.9,0.8]
[1764778380285,0.83364121,893.53,892.9,0.8]
[1764778380584,0.83364121,893.45,892.9,0.8]
[1764778380786,0.6396235,893.44,892.9,0.8]
[1764778381086,0.6396235,893.43,892.9,0.8]
[1764778381385,0.6396235,893.42,892.9,0.8]
[1764778381586,0.6396235,893.41,892.9,0.8]
[1764778381783,0.83364121,893.45,892.9,0.8]
[1764778381784,0.6396235,893.4,892.9,0.8]
[1764778381983,0.6396235,893.39,892.9,0.8]
[1764778382282,0.6396235,893.38,892.9,0.8]
[1764778382484,0.6396235,893.37,892.9,0.8]
[1764778382787,0.6396235,893.36,892.9,0.8]
[1764778382986,0.6396235,893.35,892.9,0.8]
[1764778383185,0.6396235,893.34,892.9,0.8]
[1764778383383,0.6396235,893.33,892.9,0.8]
[1764778383584,0.6396235,893.32,892.9,0.8]
[1764778383783,0.6396235,893.31,892.9,0.8]
[1764778383984,0.6396235,893.3,892.9,0.8]
[1764778384186,0.6396235,893.29,892.9,0.8]
[1764778384386,0.6396235,893.28,892.9,0.8]
[1764778384584,0.6396235,893.27,892.9,0.8]
[1764778384786,0.6396235,893.26,892.9,0.8]
[1764778384984,0.6396235,893.25,892.9,0.8]
[1764778385187,0.6396235,893.24,892.9,0.8]
[1764778385388,0.6396235,893.23,892.9,0.8]
[1764778385585,0.6396235,893.22,892.9,0.8]
[1764778385785,0.6396235,893.21,892.9,0.8]
[1764778385988,0.6396235,893.2,892.9,0.8]
[1764778386185,0.6396235,893.19,892.9,0.8]